[Event "NY Presidents Day Schiller-C 2024"]
[Site "New York"]
[Date "2024.02.16"]
[Round "2.9"]
[White "Liu, Kelsey"]
[Black "Campos Jimenez, Augusto Cesar"]
[Result "0-1"]
[ECO "C13"]
[WhiteElo "2004"]
[BlackElo "2288"]
[Annotator "TA"]
[PlyCount "104"]
[EventDate "2024.02.14"]
[EventType "schev"]
[EventCountry "USA"]
[SourceTitle "playchess.com"]
[Source "ChessBase"]
[SourceQuality "1"]
[TimeControl "5400+30"]

{[%evp 20,104,0,6,-4,-17,-4,-18,0,-14,0,-1,0,0,5,0,42,38,48,35,48,-27,21,16,17,14,28,0,6,0,0,-16,126,111,104,102,127,120,133,147,132,126,128,0,121,-238,-236,-242,-237,-222,-222,-219,-179,-187,-187,-207,-201,-215,-217,-29974,-29975,-29973,-29973,-29966,-29967,-29966,-29969,-29969,-29971,-29969,-29971,-29971,-29971,-29973,-29970,-29970,-29972,-29977,-29978,-29979,-29980,-29980,-29981,-29981,-29982,-29981,-29982]} 1. e4 {[%emt 0:00:03]} e6 {[%emt 0:01:35]} 2. d4 {[%emt 0:00:10]} d5 {[%emt 0:00:06]} 3. Nc3 {[%emt 0:00:04]} Nf6 {[%emt 0:00:07]} 4. Bg5 {[%emt 0:00:19]} dxe4 {[%emt 0:00:14]} 5. Nxe4 {[%emt 0:00:06]} Be7 {[%emt 0:00:08]} 6. Nxf6+ {[%emt 0:00:44]} Bxf6 {[%emt 0:00:14]} 7. Bxf6 {[%emt 0:00:04]} Qxf6 {[%emt 0:00:23]} 8. Nf3 {[%emt 0:00:05]} O-O {[%emt 0:00:57]} 9. Bd3 {[%emt 0:04:03]} c5 {[%emt 0:01:32]} 10. c3 {[%emt 0:03:09]} cxd4 {[%emt 0:00:23]} 11. Nxd4 {[%emt 0:02:05][%cal Bf3d4,Bd4e2,Be2g3,Bg3e4,Be4c5][%mdl 32]} e5 {[%emt 0:01:09]} 12. Ne2 {[%emt 0:01:40]} Nd7 {[%emt 0:01:19][%cal Bb8d7,Bd7f6,Bf6g4][%mdl 32]} 13. Qc2 {[%emt 0:03:21]} h6 {[%emt 0:02:15] The position is equal.} 14. b4 {[%emt 0:06:30]} Qh4 {[%emt 0:05:02]} 15. O-O {[%emt 0:03:23]} Nf6 {[%emt 0:00:36]} 16. Ng3 {[%emt 0:08:16]} Be6 {[%emt 0:01:11]} 17. Rfe1 {[%emt 0:02:03]} Rfd8 {[%emt 0:02:32]} 18. Rxe5 {[%emt 0:03:57]} Ng4 {[%emt 0:00:46][%csl LRe5,LRh2]} 19. Rh5 {[%emt 0:00:59]} Qf6 {[%emt 0:00:49]} 20. Bf5 {[%emt 0:17:41]} (20. Ne4 $14 Qf4 21. g3) 20... Rac8 {[%emt 0:04:16]} (20... g6 {is more appropriate.} 21. Bxg4 gxh5 22. Nxh5 Qe5 23. Bxe6 Qxe6) 21. Ne4 {[%emt 0:01:34]} Qe7 {[%emt 0:00:01]} 22. Bxe6 {[%emt 0:04:45]} Qxe6 {[%emt 0:00:20]} 23. Nc5 {[%emt 0:04:35]} Qc4 {[%emt 0:06:57]} 24. Rh3 {[%emt 0:05:00]} (24. Nxb7 {simplifies} Rd3 25. Qe2 Rxc3 26. Qxc4 R3xc4 27. Rc5) 24... b6 {[%emt 0:00:21]} 25. Nb3 {[%emt 0:06:10]} Qxb4 {[%emt 0:01:43]} (25... Nf6 $11 {keeps the balance.}) 26. Qf5 $1 $16 {[%emt 0:02:02]} Qa4 {[%emt 0:13:03][%cal Oa4a2] [#] And now ...Qxa2! would win.} (26... Rxc3 $2 27. Rxc3 Qxc3 28. Qxg4 $18) 27. Rg3 $1 {[%emt 0:00:40]} Rc4 {[%emt 0:00:23][%cal Oa4a2] Hoping for ...Qxa2!} 28. Nd4 {[%emt 0:05:34]} Rdxd4 {[%emt 0:10:27]} 29. cxd4 {[%emt 0:00:19]} Rxd4 {[%emt 0:00:34]} 30. Qc8+ {[%emt 0:03:54]} Kh7 {[%emt 0:00:02]} 31. Qf5+ {[%emt 0:00:05]} Kg8 {[%emt 0:00:10]} 32. Rd3 {[%emt 0:02:07][%mdl 8192] This costs White the game.} (32. Rf1 $16 {stays on course.} g6 33. Qf3) 32... Qc2 $40 {[%emt 0:01:10][%mdl 128] Black has strong attack.} 33. h3 {[%emt 0:04:22]} ({Don't go for} 33. Re1 $2 g6 $19 (33... Qxd3 34. Re8#) (33... Ne3 $2 34. fxe3 Rxd3 35. Rf1 $19) (33... Qxd3 34. Re8#) (33... Ne3 $2 34. fxe3 Rxd3 35. a3 $19)) 33... Qxd3 {[%emt 0:03:44]} 34. Qc8+ {[%emt 0:02:08]} Kh7 {[%emt 0:00:20][%cal Od3d1] ( -> ...Qd1+!)} 35. hxg4 {[%emt 0:00:03][%mdl 4096] Endgame. KQR-KQR} Qg6 {[%emt 0:01:06]} 36. f3 {[%emt 0:05:24]} Rd2 {[%emt 0:42:35][%cal Od2a2]} 37. a4 {[%emt 0:00:57]} h5 {[%emt 0:00:00]} 38. Re1 {[%emt 0:00:07]} hxg4 {[%emt 0:00:00]} 39. Re8 $2 {[%emt 0:00:58]} (39. fxg4 $19 Rd4 40. Qc3 Qxg4 (40... Rxg4 $2 {perishes.} 41. Qh3+ Qh6 42. Qxg4 $18) 41. a5) 39... Rd1+ {[%emt 0:00:00] Black mates.} ({Worse is} 39... gxf3 40. Rh8#) 40. Kf2 {[%emt 0:00:01]} g3+ {[%emt 0:00:00]} 41. Ke3 {[%emt 0:00:02]} Qd3+ {[%emt 0:00:00]} 42. Kf4 {[%emt 0:00:01]} Qd6+ {[%emt 0:00:00]} 43. Kg4 {[%emt 0:00:40]} Rd4+ {[%emt 0:00:00]} 44. Re4 {[%emt 0:00:02]} Rxe4+ {[%emt 0:00:00]} 45. fxe4 {[%emt 0:00:01] [#]} Qe6+ $1 {[%emt 0:00:00]} 46. Qxe6 {[%emt 0:00:02]} fxe6 {[%emt 0:00:00] KP-KP} 47. Kf4 {[%emt 0:00:05]} a6 {[%emt 0:00:00]} 48. Ke5 {[%emt 0:00:15]} b5 {[%emt 0:00:00]} 49. axb5 {[%emt 0:00:02]} axb5 {[%emt 0:00:00]} 50. Kd4 {[%emt 0:00:54]} Kg6 {[%emt 0:00:00]} 51. Kc5 {[%emt 0:00:03]} Kf6 {[%emt 0:00:00]} 52. Kd4 {[%emt 0:00:31]} b4 {[%emt 0:00:00] Weighted Error Value: White=0.48/Black=0.15 (very precise) .  Loses game:     	White=1     	---        Mistake:       	White=2     	Black=2      Inaccurate:     	White=1     	Black=1      OK:         	White=7     	Black=8      Best:        	White=5     	Black=5      Strong:       	White=2     	---} 0-1

[Event "NY Presidents Day Schiller-C 2024"]
[Site "New York"]
[Date "2024.02.17"]
[Round "3.1"]
[White "Czebe, Attila"]
[Black "Mou, Iris"]
[Result "1-0"]
[ECO "A22"]
[WhiteElo "2346"]
[BlackElo "2128"]
[Annotator "TA"]
[PlyCount "109"]
[EventDate "2024.02.14"]
[EventType "schev"]
[EventCountry "USA"]
[SourceTitle "playchess.com"]
[Source "ChessBase"]
[SourceQuality "1"]
[TimeControl "5400+30"]

{[%evp 9,109,0,0,0,9,18,14,31,37,23,112,27,45,43,47,49,47,48,61,53,57,64,57,66,90,95,102,101,91,98,122,98,90,88,85,68,110,111,111,110,118,122,119,114,115,97,139,115,153,162,180,170,152,143,137,127,155,148,175,165,249,201,251,188,371,365,387,371,341,179,228,215,264,255,267,189,171,164,188,177,188,206,375,356,365,292,506,508,836,807,692,730,1408,1395,2017,1745,29978,29979,29982,29983,29989,29990]} 1. c4 {[%emt 0:00:29]} e5 {[%emt 0:00:26]} 2. Nc3 {[%emt 0:00:22]} Nf6 {[%emt 0:00:13]} 3. e3 {[%emt 0:03:01]} Be7 {[%emt 0:04:13]} 4. d4 {[%emt 0:02:03]} exd4 {[%emt 0:01:50]} 5. Qxd4 {[%emt 0:00:30]} O-O {[%emt 0:05:45]} 6. Nf3 {[%emt 0:01:09]} b6 {[%emt 0:02:43]} 7. b3 {[%emt 0:01:12]} Bb7 {[%emt 0:07:03]} 8. Bb2 {[%emt 0:00:21] The position is equal.} Bc5 {[%emt 0:05:02]} 9. Qh4 {[%emt 0:02:36]} Qe7 {[%emt 0:06:40]} (9... Ne4 $11 {keeps the balance.}) 10. Be2 {[%emt 0:01:42]} ({White should try} 10. Bd3 $16 {[%cal Oc3d5] Threatens to win with Nd5!} h6 11. O-O) 10... Ba3 {[%emt 0:04:34]} 11. Bxa3 {[%emt 0:00:20]} Qxa3 {[%emt 0:00:08]} 12. O-O {[%emt 0:00:19]} Qe7 {[%emt 0:02:40]} 13. Rfd1 {[%emt 0:00:28]} d6 {[%emt 0:01:39]} 14. Nd5 {[%emt 0:04:03]} Nxd5 {[%emt 0:05:32]} 15. cxd5 {[%emt 0:00:17]} Qxh4 {[%emt 0:00:40]} 16. Nxh4 {[%emt 0:00:04][%cal Bf3h4,Bh4f5,Bf5d4][%mdl 32]} a5 {[%emt 0:09:54] Black is weak on the light squares} 17. Rac1 {[%emt 0:01:14]} Ba6 {[%emt 0:00:20]} 18. Bg4 {[%emt 0:01:15]} Ra7 {[%emt 0:00:20]} 19. Nf5 {[%emt 0:00:53]} Re8 {[%emt 0:03:43]} 20. Rd2 {[%emt 0:01:20][%cal Bd1d2,Bd2c2,Bc2c4][%mdl 32]} g6 {[%emt 0:02:38][%cal Oh7h5] aiming for ...h5!} 21. Nd4 {[%emt 0:00:08]} h5 {[%emt 0:01:11]} 22. Be2 {[%emt 0:01:10]} Kg7 {[%emt 0:02:45]} 23. Bb5 {[%emt 0:00:46] White has more active pieces. The black rooks are passive.} Re4 {[%emt 0:01:57][%cal Oe4d4]} 24. a4 {[%emt 0:10:12]} Rb7 {[%emt 0:02:47]} 25. Rdc2 {[%emt 0:01:16]} Bxb5 {[%emt 0:09:50]} 26. axb5 {[%emt 0:01:20]} (26. Nxb5 Na6 $14) 26... Re7 {[%emt 0:00:25]} 27. Rc4 {[%emt 0:02:58]} Ra7 {[%emt 0:02:38]} 28. R1c3 {[%emt 0:01:33]} Rb7 {[%emt 0:01:24]} 29. f3 $1 {[%emt 0:01:01]} Kf8 {[%emt 0:01:10]} 30. Kf2 {[%emt 0:00:09]} Ke8 {[%emt 0:01:04]} 31. h3 {[%emt 0:03:02]} Kd8 {[%emt 0:00:49]} 32. g4 {[%emt 0:00:16]} hxg4 {[%emt 0:00:29]} 33. hxg4 {[%emt 0:00:05]} Re8 {[%emt 0:00:37] [#]} 34. Rc1 $1 {[%emt 0:01:47]} Nd7 {[%emt 0:01:51]} (34... Rh8 $142 35. Kg2 Nd7 36. Nc6+ Ke8) 35. Nc6+ $18 {[%emt 0:00:17]} Kc8 {[%emt 0:00:09]} 36. Rf4 {[%emt 0:04:48]} Ne5 {[%emt 0:04:00]} (36... Rf8 {keeps fighting.} 37. Rh1 f6) 37. Nxe5 {[%emt 0:00:35]} Rxe5 {[%emt 0:00:09]} 38. Rxf7 {[%emt 0:00:04]} Rxd5 {[%emt 0:00:24][%cal Od5c5][%mdl 4096] Endgame. KRR-KRR} 39. Rh1 {[%emt 0:00:08]} (39. f4 $142) 39... Ra7 {[%emt 0:01:36]} (39... Rb8 $142) 40. f4 {[%emt 0:02:55]} (40. Rh8+ Kb7 $14) 40... a4 {[%emt 0:05:05]} (40... Rxb5 41. f5 gxf5 (41... Rxb3 $2 {too greedy.} 42. fxg6 Rb5 43. Rh5 $18) 42. Rf8+ Kd7 43. g5 $18) 41. bxa4 {[%emt 0:00:20]} Rxa4 {[%emt 0:00:07]} 42. Rc1 {[%emt 0:00:07]} Rc5 {[%emt 0:01:27]} 43. Rxc5 {[%emt 0:00:07]} bxc5 {[%emt 0:01:22] KR-KR} 44. Rg7 {[%emt 0:03:58]} Ra2+ {[%emt 0:00:46] [#]} 45. Ke1 $1 {[%emt 0:00:28]} Ra1+ $2 {[%emt 0:00:25]} (45... c4 46. Rxg6 c3) 46. Kd2 {[%emt 0:00:26]} Ra2+ {[%emt 0:00:23]} 47. Kd3 {[%emt 0:02:12]} d5 $2 {[%emt 0:01:12]} (47... Kb7 48. Rxg6 Kb6) 48. Rxg6 {[%emt 0:00:09]} c4+ {[%emt 0:01:16]} (48... Ra3+ $142 49. Ke2 Kd7) 49. Kd4 {[%emt 0:00:13]} Rd2+ {[%emt 0:00:22]} 50. Ke5 {[%emt 0:00:03]} c3 {[%emt 0:01:11][%cal Bc4c3,Bc3c2][%mdl 32]} 51. Rc6 {[%emt 0:00:10]} c2 {[%emt 0:00:23]} 52. b6 {[%emt 0:00:09][%cal Bb5b6,Bb6c7][%mdl 32]} Kb7 {[%emt 0:00:22] [#]} 53. bxc7 $1 {[%emt 0:00:07] White mates.} Kc8 {[%emt 0:00:05]} (53... Kxc6 54. c8=Q+) 54. g5 {[%emt 0:00:41]} Rg2 {[%emt 0:01:08]} 55. Kd6 {[%emt 0:00:17] Weighted Error Value: White=0.13 (very precise) /Black=0.45.  Mistake:       	White=2     	Black=7      Inaccurate:     	---       	Black=3      OK:         	White=21    	Black=14     Best:        	White=6     	Black=1      Strong:       	White=1     	---} 1-0

[Event "NY Presidents Day Schiller-C 2024"]
[Site "New York"]
[Date "2024.02.17"]
[Round "3.2"]
[White "Quesada Vera, Liordis"]
[Black "Shangin, Lev"]
[Result "1/2-1/2"]
[ECO "A08"]
[WhiteElo "2337"]
[BlackElo "1866"]
[Annotator "TA"]
[PlyCount "91"]
[EventDate "2024.02.14"]
[EventType "schev"]
[EventCountry "USA"]
[SourceTitle "playchess.com"]
[Source "ChessBase"]
[SourceQuality "1"]
[TimeControl "5400+30"]

{[%evp 10,91,-15,-17,-8,-24,-12,-16,-9,-23,-14,-39,-20,-14,22,25,210,19,97,9,73,72,75,85,125,37,43,41,37,18,25,7,20,0,26,0,31,40,22,-8,95,-378,-373,-355,-352,-337,-189,-197,-195,-193,-154,-271,-258,-211,-174,-173,-160,-157,-168,-180,-109,-124,0,0,-5,-43,0,0,0,0,0,0,0,0,90,0,32,0,0,0,0,0,0,0]} 1. g3 {[%emt 0:15:35]} d5 {[%emt 0:00:43]} 2. Bg2 {[%emt 0:00:07]} Nf6 {[%emt 0:00:20]} 3. d3 {[%emt 0:01:25]} c5 {[%emt 0:01:02]} 4. Nd2 {[%emt 0:00:49]} Nc6 {[%emt 0:00:59]} 5. e4 {[%emt 0:00:11]} e5 {[%emt 0:01:29]} 6. Ngf3 {[%emt 0:00:34][%cal Bg1f3,Bf3h4,Bh4f5][%mdl 32]} d4 {[%emt 0:02:11]} 7. Nc4 {[%emt 0:01:22]} Qc7 {[%emt 0:00:44]} 8. a4 {[%emt 0:00:09]} h6 {[%emt 0:05:25]} 9. O-O {[%emt 0:00:19]} Be6 {[%emt 0:00:57]} 10. Nh4 {[%emt 0:07:41]} g5 {[%emt 0:08:29]} 11. Nf5 {[%emt 0:00:19]} Nd7 {[%emt 0:02:20]} 12. Bh3 {[%emt 0:07:00]} Rg8 $2 {[%emt 0:04:00]} (12... Nf6 $11) 13. Bd2 $2 {[%emt 0:01:10]} (13. Nxh6 $1 $18 {Bxe6 would now be deadly.} Bxh6 14. Bxe6) 13... Nb6 {[%emt 0:06:36]} (13... Bxc4 $11 {remains equal.} 14. dxc4 Nf6) 14. Na3 {[%emt 0:07:53] White has more active pieces.} (14. Nxh6 $16 Bxh6 15. Bxe6 fxe6 16. Qh5+ Kd8 17. Nxb6 (17. Qxh6 Qe7 $16) 17... axb6 18. Qxh6) 14... Qd7 {[%emt 0:02:14]} (14... O-O-O $1 $11) 15. a5 $16 {[%emt 0:04:55]} Nc8 {[%emt 0:00:07]} 16. Nc4 {[%emt 0:00:30]} Rg6 {[%emt 0:05:23]} 17. Qf3 {[%emt 0:12:11]} (17. Qh5 $16) 17... Nd6 $14 {[%emt 0:05:54]} 18. Nfxd6+ {[%emt 0:05:08]} Bxd6 {[%emt 0:00:19]} 19. Bxe6 {[%emt 0:01:29]} Qxe6 {[%emt 0:01:38]} 20. Qf5 {[%emt 0:00:51]} Kd7 {[%emt 0:06:58]} 21. Qf3 {[%emt 0:04:53]} Be7 {[%emt 0:02:02][%cal Oh6h5]} 22. Qh5 {[%emt 0:01:13]} Rf8 {[%emt 0:04:47]} 23. c3 {[%emt 0:05:59]} f5 {[%emt 0:03:58]} 24. cxd4 {[%emt 0:00:26]} (24. b4 $5 cxb4 25. cxb4 $16) 24... Nxd4 {[%emt 0:02:06] [#]} (24... exd4 $11 {keeps the balance.} 25. exf5 Qxf5) 25. Qxg6 $4 {[%emt 0:01:11][%mdl 8192]} Nf3+ $19 {[%emt 0:00:20]} 26. Kg2 {[%emt 0:00:57]} Qxg6 {[%emt 0:00:08]} 27. Kxf3 {[%emt 0:00:16]} Ke6 {[%emt 0:01:01]} (27... fxe4+ $142 28. Kg2 Bd6 (28... exd3 $2 {too greedy.} 29. Nxe5+ Ke8 30. Nxg6 $18)) 28. Kg2 {[%emt 0:00:14]} f4 {[%emt 0:00:57]} ({Resist} 28... fxe4 29. Rae1 $15) 29. Bc3 {[%emt 0:00:11]} Bf6 {[%emt 0:00:34] Hoping for ...Rd8.} 30. f3 {[%emt 0:01:16]} (30. g4 $17) 30... g4 {[%emt 0:00:53]} 31. fxg4 {[%emt 0:01:23]} Qxg4 {[%emt 0:01:02]} 32. Rf3 {[%emt 0:00:07]} Rg8 {[%emt 0:02:55]} 33. Raf1 {[%emt 0:00:17][%cal Ba1f1,Bf1f2,Bf2g2][%mdl 32]} h5 {[%emt 0:00:37]} 34. R1f2 {[%emt 0:02:20]} Qg7 {[%emt 0:00:41]} ({Black should try} 34... h4 $19 35. h3 Qg7) 35. Kf1 $17 {[%emt 0:00:35] [#]} Rd8 {[%emt 0:02:20]} (35... Qd7 $1 $17 36. Ke2 (36. gxf4 $2 Qa4 $17) 36... Qa4) 36. gxf4 {[%emt 0:03:43]} exf4 {[%emt 0:00:17]} 37. Rg2 {[%emt 0:00:04] Chess con chili.} Qh7 {[%emt 0:02:20]} 38. Bxf6 {[%emt 0:00:30]} Kxf6 {[%emt 0:00:07]} 39. Rxf4+ {[%emt 0:00:28]} Ke6 $1 {[%emt 0:00:20]} 40. Ke2 {[%emt 0:00:15]} Rg8 {[%emt 0:01:03] Against Rg5} 41. Rgf2 {[%emt 0:00:15][%cal Oa5a6]} Rg6 {[%emt 0:00:31] [#]} (41... Qg7 $11) 42. Rf7 {[%emt 0:04:04]} Qh6 {[%emt 0:02:37]} (42... Qxf7 43. Rxf7 Kxf7 44. Ne5+ Kf6 45. Nxg6 $18) 43. Rxb7 {[%emt 0:00:49]} Qc1 $1 {[%emt 0:01:05] aiming for ...Rg1. The position is equal.} 44. Rxa7 {[%emt 0:11:26] Threatens to win with Ra6+.} Rg1 {[%emt 0:00:01]} 45. Ra6+ {[%emt 0:00:00]} Ke7 {[%emt 0:00:03] White must now prevent ...Qc2+.} 46. Ra7+ {[%emt 0:00:00] Whites escaped into a draw.   Weighted Error Value: White=0.28 (precise) /Black=0.37.  Loses game:     	White=1     	Black=1      Missed win:     	White=1     	---        Mistake:       	White=4     	Black=7      Inaccurate:     	White=4     	Black=5      OK:         	White=14    	Black=8      Best:        	White=3     	Black=3      Strong:       	---       	Black=2} 1/2-1/2

[Event "NY Presidents Day Schiller-C 2024"]
[Site "New York"]
[Date "2024.02.17"]
[Round "3.3"]
[White "Perez Avendano, Paul Omar"]
[Black "Pagan, Jonathan"]
[Result "1/2-1/2"]
[ECO "E05"]
[WhiteElo "2213"]
[BlackElo "2018"]
[Annotator "RC"]
[PlyCount "82"]
[EventDate "2024.02.14"]
[EventType "schev"]
[EventCountry "USA"]
[SourceTitle "playchess.com"]
[Source "ChessBase"]
[SourceQuality "1"]
[TimeControl "5400+30"]

1. Nf3 {[%emt 0:03:11]} d5 {[%emt 0:00:06]} 2. c4 {[%emt 0:00:06]} e6 {[%emt 0:00:04]} 3. g3 {[%emt 0:00:06]} Nf6 {[%emt 0:00:49]} 4. Bg2 {[%emt 0:00:19]} Be7 {[%emt 0:00:16]} 5. O-O {[%emt 0:00:40]} O-O {[%emt 0:00:05]} 6. d4 {[%emt 0:02:28]} dxc4 {[%emt 0:00:05]} 7. Qc2 {[%emt 0:02:55]} b6 {[%emt 0:01:52]} 8. Bg5 {[%emt 0:02:18]} Nd5 {[%emt 0:00:06]} 9. Bxe7 {[%emt 0:01:21]} Qxe7 {[%emt 0:00:08]} 10. Qxc4 {[%emt 0:05:45]} Bb7 {[%emt 0:01:06]} 11. Qc2 {[%emt 0:01:52]} Nd7 {[%emt 0:08:03]} 12. Nc3 {[%emt 1:15:29]} Nxc3 {[%emt 0:05:19]} 13. bxc3 {[%emt 0:00:00]} Nf6 {[%emt 0:02:59]} 14. Rfe1 {[%emt 0:00:00]} Be4 {[%emt 0:00:26]} 15. Qb2 {[%emt 0:00:00]} c5 {[%emt 0:02:05]} 16. a4 {[%emt 0:00:00]} Rfc8 {[%emt 0:04:48]} 17. Rec1 {[%emt 0:00:00]} Rab8 {[%emt 0:00:28]} 18. Ne5 {[%emt 0:00:00]} Bxg2 {[%emt 0:00:28]} 19. Kxg2 {[%emt 0:00:00]} h6 {[%emt 0:03:02]} 20. Kg1 {[%emt 0:00:00]} Nd7 {[%emt 0:04:25]} 21. Nc4 {[%emt 0:00:00]} Nf6 {[%emt 0:02:10]} 22. Qb5 {[%emt 0:00:00]} Ne4 {[%emt 0:07:37]} 23. Qb1 {[%emt 0:00:00]} Nd6 {[%emt 0:04:26]} 24. Ne5 {[%emt 0:00:00]} Qb7 {[%emt 0:02:45]} 25. Qd3 {[%emt 0:00:00]} Ne8 {[%emt 0:14:04]} 26. a5 {[%emt 0:00:00]} b5 {[%emt 0:02:33]} 27. a6 {[%emt 0:00:00]} Qc7 {[%emt 0:00:16]} 28. Qe3 {[%emt 0:00:00]} Nf6 {[%emt 0:05:49]} 29. Nd3 {[%emt 0:00:00]} c4 {[%emt 0:01:19]} 30. Nc5 {[%emt 0:00:00]} Rb6 {[%emt 0:02:59]} 31. Qd2 {[%emt 0:00:00]} Nd7 {[%emt 0:01:04]} 32. Nxd7 {[%emt 0:00:00]} Qxd7 {[%emt 0:00:04]} 33. Rcb1 {[%emt 0:00:00]} Rcc6 {[%emt 0:05:31]} 34. Ra5 {[%emt 0:00:00]} Rd6 {[%emt 0:01:56]} 35. e3 {[%emt 0:00:00]} e5 {[%emt 0:06:03]} 36. Qe2 {[%emt 0:00:00]} e4 {[%emt 0:01:43]} 37. Qh5 {[%emt 0:01:33]} Rd5 {[%emt 0:00:19]} 38. Qe2 {[%emt 0:01:01]} Qh3 {[%emt 0:01:43]} 39. Qf1 {[%emt 0:00:27]} Qf5 {[%emt 0:00:07]} 40. Rb4 {[%emt 0:00:36]} Rf6 {[%emt 0:04:51]} 41. Rb2 {[%emt 0:00:58]} h5 {[%emt 0:01:29]} 1/2-1/2

[Event "NY Presidents Day Schiller-C 2024"]
[Site "New York"]
[Date "2024.02.17"]
[Round "3.4"]
[White "Andrianov, Nikolai"]
[Black "Ho, Carter"]
[Result "1-0"]
[ECO "D38"]
[WhiteElo "2266"]
[BlackElo "2180"]
[Annotator "TA"]
[PlyCount "103"]
[EventDate "2024.02.14"]
[EventType "schev"]
[EventCountry "USA"]
[SourceTitle "playchess.com"]
[Source "ChessBase"]
[SourceQuality "1"]
[TimeControl "5400+30"]

{[%evp 13,103,18,9,18,20,23,32,18,72,64,100,104,114,112,132,98,97,99,97,102,113,116,137,133,139,135,127,138,143,137,152,155,155,155,161,154,165,171,194,218,203,202,220,225,283,239,241,0,329,321,320,312,333,313,327,0,285,301,317,289,317,323,315,321,334,308,315,309,308,308,379,301,354,332,596,469,560,504,624,589,670,616,775,732,799,851,804,770,1011,963,1053,1051]} 1. d4 {[%emt 0:00:30]} Nf6 {[%emt 0:00:51]} 2. Nf3 {[%emt 0:00:00]} d5 {[%emt 0:00:18]} 3. c4 {[%emt 0:00:00]} e6 {[%emt 0:00:05]} 4. Nc3 {[%emt 0:02:22]} Bb4 {[%emt 0:00:11]} 5. cxd5 {[%emt 0:00:17]} exd5 {[%emt 0:00:08]} 6. Bg5 {[%emt 0:00:05]} h6 {[%emt 0:01:32]} 7. Bxf6 {[%emt 0:00:34]} Qxf6 {[%emt 0:00:10]} 8. Qa4+ {[%emt 0:00:38]} Nc6 {[%emt 0:00:08]} 9. e3 {[%emt 0:03:55]} Bd7 {[%emt 0:10:39][%cal Oc6d4]} 10. Qb3 {[%emt 0:02:08] White is slightly better.} O-O-O {[%emt 0:18:11]} (10... Bxc3+ $11 11. Qxc3 O-O) 11. Be2 $16 {[%emt 0:10:53][%cal Oa1c1]} Be6 {[%emt 0:06:25]} 12. O-O {[%emt 0:01:23]} Qe7 {[%emt 0:04:40]} 13. Rfc1 {[%emt 0:03:16] Threatens to win with Nb5.} Kb8 {[%emt 0:08:04]} 14. a3 {[%emt 0:10:04]} Bxc3 {[%emt 0:03:28]} 15. Rxc3 {[%emt 0:02:18]} Na5 {[%emt 0:03:43]} 16. Qc2 {[%emt 0:11:56]} c6 {[%emt 0:01:07]} 17. Ne5 {[%emt 0:00:44]} h5 {[%emt 0:04:58][%cal Bh6h5,Bh5h4,Bh4h3][%mdl 32]} 18. b4 {[%emt 0:01:45]} Nc4 {[%emt 0:00:08]} 19. Nxc4 {[%emt 0:01:36]} dxc4 {[%emt 0:00:08]} 20. Bxc4 {[%emt 0:00:03]} h4 {[%emt 0:01:49]} 21. Qe4 {[%emt 0:02:38]} h3 {[%emt 0:34:17]} 22. Bxe6 {[%emt 0:44:25]} fxe6 {[%emt 0:00:00]} 23. g3 {[%emt 0:00:00]} Rd5 {[%emt 0:00:00]} 24. Rc5 {[%emt 0:00:00]} Rf8 {[%emt 0:00:00]} 25. Rxd5 {[%emt 0:00:00]} cxd5 $18 {[%emt 0:00:00][%mdl 4096] Endgame. KQR-KQR} 26. Qe5+ {[%emt 0:00:00]} Ka8 {[%emt 0:00:00]} 27. Rc1 {[%emt 0:00:00] And now Rc7 would win.} Qf7 {[%emt 0:00:00]} 28. Qf4 {[%emt 0:00:00] [#] Threatening mate with Qxf7. Active counter play!} Qe8 {[%emt 0:00:00]} 29. Qg4 {[%emt 0:00:00]} Qf7 {[%emt 0:00:00]} 30. Qf4 $40 {[%emt 0:00:00][%mdl 128] White threatens Qxf7 and mate. White has some attack.} (30. Qxh3 Qxf2+ 31. Kh1 Qxe3 $17) 30... Qe8 {[%emt 0:00:00]} 31. Qc7 {[%emt 0:00:00]} a6 {[%emt 0:00:00]} 32. Qxg7 {[%emt 0:00:00]} Rg8 {[%emt 0:00:00]} 33. Qh7 {[%emt 0:00:00]} Rh8 {[%emt 0:00:00]} 34. Qg7 {[%emt 0:00:00]} Rg8 {[%emt 0:00:00]} 35. Qh6 {[%emt 0:00:00]} Rh8 {[%emt 0:00:00]} 36. Qg5 {[%emt 0:00:00]} Rg8 {[%emt 0:00:00]} 37. Qh4 {[%emt 0:00:00]} Rh8 {[%emt 0:00:00]} 38. Qg4 {[%emt 0:00:00]} Qf7 {[%emt 0:00:00]} 39. Kf1 {[%emt 0:00:00]} Rf8 {[%emt 0:00:00]} 40. f4 {[%emt 0:00:00]} (40. Qxh3 $2 Qxf2#) 40... Qh7 {[%emt 0:00:00]} 41. Ke2 {[%emt 0:00:00]} (41. Qxe6 Qd3+ 42. Ke1 Qxa3 $16) 41... Re8 {[%emt 0:00:00]} 42. Qf3 {[%emt 0:00:00]} Qd7 {[%emt 0:00:00]} 43. Kd2 {[%emt 0:00:00]} Rc8 $2 {[%emt 0:00:00] [#]} (43... Qa4 {was necessary.} 44. Qh5 a5 45. bxa5 (45. Qxh3 axb4 46. axb4 Qxb4+ 47. Kd1 Qb3+ 48. Kd2 Qb4+ 49. Kd1 Qb3+ 50. Ke2 Qb2+ 51. Kd1 Qb3+ $11) 45... Qxa5+ 46. Ke2 Rd8 47. Qxh3 Qxa3) 44. Rxc8+ {[%emt 0:00:35] White is clearly winning.} Qxc8 {[%emt 0:00:00] KQ-KQ} 45. Qf1 {[%emt 0:00:24]} Qh8 {[%emt 0:00:00]} 46. g4 {[%emt 0:00:42][%cal Bg3g4,Bg4g5][%mdl 32] Wards off Qh5} a5 {[%emt 0:00:00]} 47. bxa5 {[%emt 0:00:15]} Qf8 {[%emt 0:00:00]} 48. Qd3 {[%emt 0:01:33]} Qd8 {[%emt 0:00:00]} 49. g5 {[%emt 0:01:58]} Qxa5+ {[%emt 0:00:00]} 50. Ke2 {[%emt 0:00:13]} Qd8 {[%emt 0:00:00]} 51. Kf3 {[%emt 0:00:22]} Qh8 {[%emt 0:00:00]} 52. Kg3 {[%emt 0:00:21] Weighted Error Value: White=0.25 (precise) /Black=0.24 (precise) .  Mistake:       	---       	Black=2      Inaccurate:     	---       	Black=1      OK:         	White=19    	Black=13     Best:        	White=2     	Black=5} 1-0